[Event "Kurnosov Memorial Rapid 2019"]
[Site "Chelyabinsk"]
[Date "2019.09.08"]
[Round "10.4"]
[White "Volkov, Sergey"]
[Black "Lobanov, Sergei"]
[Result "1-0"]
[ECO "E15"]
[WhiteElo "2557"]
[BlackElo "2515"]
[Annotator "ChessBase"]
[PlyCount "63"]
[EventDate "2019.09.06"]
[EventType "swiss"]
[EventCountry "RUS"]
[SourceTitle "playchess.com"]
[Source "ChessBase"]
[SourceQuality "1"]
[TimeControl "900+10"]

1. d4 {[%emt 0:00:00]} Nf6 {[%emt 0:00:00]} 2. c4 {[%emt 0:00:00]} e6 {[%emt 0:00:00]} 3. Nf3 {[%emt 0:00:00]} b6 {[%emt 0:00:08]} 4. g3 {[%emt 0:00:01]} Ba6 {[%emt 0:00:01]} 5. Nbd2 {[%emt 0:00:04]} c5 {[%emt 0:00:17]} 6. Bg2 {[%emt 0:00:13]} Nc6 {[%emt 0:00:15]} 7. e3 {[%emt 0:01:48]} Be7 {[%emt 0:01:10]} 8. O-O {[%emt 0:00:07]} O-O {[%emt 0:00:06]} 9. b3 {[%emt 0:00:40]} Rc8 {[%emt 0:01:34]} 10. Bb2 {[%emt 0:00:17]} cxd4 {[%emt 0:00:01]} 11. exd4 {[%emt 0:00:38]} d5 {[%emt 0:00:03]} 12. Ne5 {[%emt 0:00:07]} Na5 {[%emt 0:00:12]} 13. Rc1 {[%emt 0:00:27]} Bb4 {[%emt 0:00:25]} 14. Re1 {[%emt 0:00:15]} dxc4 {[%emt 0:00:42]} 15. bxc4 {[%emt 0:00:04]} Bxd2 {[%emt 0:02:56]} 16. Qxd2 {[%emt 0:00:02]} Nxc4 {[%emt 0:00:00]} 17. Nxc4 {[%emt 0:00:12]} Bxc4 {[%emt 0:00:26]} 18. d5 {[%emt 0:00:01]} exd5 {[%emt 0:03:17]} 19. Bh3 {[%emt 0:00:42]} Ra8 {[%emt 0:00:29]} 20. Qd4 {[%emt 0:01:06]} Re8 {[%emt 0:00:23]} 21. Bf5 {[%emt 0:00:20]} h6 {[%emt 0:00:53]} 22. h4 {[%emt 0:00:14]} b5 {[%emt 0:00:09]} 23. Rxe8+ {[%emt 0:00:41]} Qxe8 {[%emt 0:01:05]} 24. g4 {[%emt 0:00:44]} Qe2 {[%emt 0:00:59]} 25. Bc3 {[%emt 0:00:40]} Qf3 {[%emt 0:00:49]} 26. Re1 {[%emt 0:00:17]} Qh3 {[%emt 0:00:01]} 27. a3 {[%emt 0:01:46]} a5 {[%emt 0:01:19]} 28. h5 {[%emt 0:01:17]} b4 {[%emt 0:00:38]} 29. axb4 {[%emt 0:00:05]} axb4 {[%emt 0:00:01]} 30. Bxb4 {[%emt 0:00:18]} Nxh5 {[%emt 0:00:39]} 31. Qa7 {[%emt 0:00:17]} Rf8 {[%emt 0:00:57]} 32. Qe7 {[%emt 0:00:14]} 1-0

[Event "Kurnosov Memorial Rapid 2019"]
[Site "Chelyabinsk"]
[Date "2019.09.08"]
[Round "10.5"]
[White "Zhalmakhanov, Ramazan"]
[Black "Pridorozhni, Aleksei"]
[Result "1-0"]
[ECO "B13"]
[WhiteElo "2342"]
[BlackElo "2599"]
[Annotator "RC"]
[PlyCount "119"]
[EventDate "2019.09.06"]
[EventType "swiss"]
[EventCountry "RUS"]
[SourceTitle "playchess.com"]
[Source "ChessBase"]
[SourceQuality "1"]
[TimeControl "900+10"]

1. e4 {[%emt 0:00:00]} c6 {[%emt 0:00:00]} 2. d4 {[%emt 0:00:00]} d5 {[%emt 0:00:00]} 3. exd5 {[%emt 0:00:00]} cxd5 {[%emt 0:00:00]} 4. Bd3 {[%emt 0:00:00]} Nc6 {[%emt 0:00:00]} 5. c3 {[%emt 0:00:00]} Nf6 {[%emt 0:00:02]} 6. Bf4 {[%emt 0:00:00]} g6 {[%emt 0:00:02]} 7. Nf3 {[%emt 0:00:16]} Bg7 {[%emt 0:00:03]} 8. O-O {[%emt 0:00:07]} O-O {[%emt 0:00:24]} 9. Nbd2 {[%emt 0:00:37]} Nh5 {[%emt 0:00:03]} 10. Be3 {[%emt 0:01:06]} Qd6 {[%emt 0:00:03]} 11. Re1 {[%emt 0:00:37]} b6 {[%emt 0:00:36]} 12. Nf1 {[%emt 0:02:07]} a5 {[%emt 0:01:24]} 13. Ng3 {[%emt 0:00:17]} Nxg3 {[%emt 0:00:03]} 14. hxg3 {[%emt 0:00:02]} Ba6 {[%emt 0:00:06]} 15. Bf4 {[%emt 0:00:29]} Qd7 {[%emt 0:00:01]} 16. Bxa6 {[%emt 0:00:14]} Rxa6 {[%emt 0:00:02]} 17. Qd3 {[%emt 0:00:02]} Ra7 {[%emt 0:00:07]} 18. a4 {[%emt 0:01:01]} f6 {[%emt 0:01:28]} 19. Re2 {[%emt 0:01:48]} Re8 {[%emt 0:00:07]} 20. Rae1 {[%emt 0:00:15]} Rb7 {[%emt 0:00:09]} 21. Qb5 {[%emt 0:00:45]} Na7 {[%emt 0:00:49]} 22. Qxd7 {[%emt 0:02:31]} Rxd7 {[%emt 0:00:02]} 23. Re6 {[%emt 0:00:00]} Rb7 {[%emt 0:00:02]} 24. g4 {[%emt 0:00:21]} g5 {[%emt 0:01:05]} 25. Bd6 {[%emt 0:02:06]} Kf7 {[%emt 0:00:02]} 26. Nd2 {[%emt 0:00:17]} Bf8 {[%emt 0:00:04]} 27. Ba3 {[%emt 0:03:01]} Rc8 {[%emt 0:00:03]} 28. Kf1 {[%emt 0:00:42]} Rc6 {[%emt 0:00:43]} 29. R6e3 {[%emt 0:00:15]} Nc8 {[%emt 0:00:43]} 30. g3 {[%emt 0:00:12]} Rbc7 {[%emt 0:00:04]} 31. Ke2 {[%emt 0:00:42]} Nd6 {[%emt 0:00:43]} 32. Kd3 {[%emt 0:00:02]} Nc4 {[%emt 0:00:17]} 33. Nxc4 {[%emt 0:00:04]} Rxc4 {[%emt 0:00:02]} 34. Re6 {[%emt 0:00:03]} R4c6 {[%emt 0:00:29]} 35. R6e2 {[%emt 0:00:20]} h6 {[%emt 0:00:44]} 36. f4 {[%emt 0:00:01]} e5 {[%emt 0:00:24]} 37. Bxf8 {[%emt 0:00:35]} e4+ {[%emt 0:00:01]} 38. Ke3 {[%emt 0:00:04]} Kxf8 {[%emt 0:00:02]} 39. Rf2 {[%emt 0:00:14]} Kg7 {[%emt 0:05:13]} 40. Ref1 {[%emt 0:00:12]} b5 {[%emt 0:00:29]} 41. axb5 {[%emt 0:00:09]} Rb6 {[%emt 0:00:01]} 42. fxg5 {[%emt 0:00:08]} fxg5 {[%emt 0:00:44]} 43. Kd2 {[%emt 0:00:15]} Rxb5 {[%emt 0:00:03]} 44. Kc2 {[%emt 0:00:07]} Rcb7 {[%emt 0:00:09]} 45. Kb1 {[%emt 0:00:11]} a4 {[%emt 0:00:14]} 46. Ka2 {[%emt 0:00:00]} Rb3 {[%emt 0:00:05]} 47. Rc2 {[%emt 0:00:04]} Kg6 {[%emt 0:00:43]} 48. Rf5 {[%emt 0:00:03]} R3b5 {[%emt 0:00:11]} 49. Re5 {[%emt 0:00:09]} R7b6 {[%emt 0:00:36]} 50. Rf2 {[%emt 0:00:35]} h5 {[%emt 0:02:26]} 51. Ka3 {[%emt 0:00:00]} h4 {[%emt 0:00:27]} 52. gxh4 {[%emt 0:00:15]} gxh4 {[%emt 0:00:01]} 53. Rh5 {[%emt 0:00:16]} Rb3+ {[%emt 0:00:06]} 54. Kxa4 {[%emt 0:00:05]} Rxb2 {[%emt 0:00:06]} 55. Rxb2 {[%emt 0:00:10]} Rxb2 {[%emt 0:00:02]} 56. Rxh4 {[%emt 0:00:06]} Kg5 {[%emt 0:01:31]} 57. Rh5+ {[%emt 0:00:01]} Kxg4 {[%emt 0:00:05]} 58. Rxd5 {[%emt 0:00:01]} e3 {[%emt 0:00:01]} 59. Re5 {[%emt 0:00:10]} Kf3 {[%emt 0:00:21]} 60. c4 {[%emt 0:00:24]} 1-0

[Event "Kurnosov Memorial Rapid 2019"]
[Site "Chelyabinsk"]
[Date "2019.09.08"]
[Round "10.6"]
[White "Kokarev, Dmitry"]
[Black "Belyakov, Bogdan"]
[Result "1-0"]
[ECO "A16"]
[WhiteElo "2601"]
[BlackElo "2495"]
[Annotator "RC"]
[PlyCount "87"]
[EventDate "2019.09.06"]
[EventType "swiss"]
[EventCountry "RUS"]
[SourceTitle "playchess.com"]
[Source "ChessBase"]
[SourceQuality "1"]
[TimeControl "900+10"]

1. c4 {[%emt 0:00:00]} Nf6 {[%emt 0:00:24]} 2. Nc3 {[%emt 0:00:04]} g6 {[%emt 0:00:05]} 3. g3 {[%emt 0:00:03]} Bg7 {[%emt 0:00:03]} 4. Bg2 {[%emt 0:00:03]} O-O {[%emt 0:00:04]} 5. d4 {[%emt 0:00:36]} d6 {[%emt 0:01:02]} 6. e3 {[%emt 0:00:06]} c5 {[%emt 0:02:03]} 7. Nge2 {[%emt 0:00:04]} Nc6 {[%emt 0:00:03]} 8. O-O {[%emt 0:00:17]} Bd7 {[%emt 0:00:39]} 9. b3 {[%emt 0:00:05]} Qc8 {[%emt 0:01:04]} 10. Bb2 {[%emt 0:01:26]} Bh3 {[%emt 0:00:24]} 11. d5 {[%emt 0:00:28]} Bxg2 {[%emt 0:00:39]} 12. Kxg2 {[%emt 0:00:02]} Na5 {[%emt 0:01:25]} 13. Qc2 {[%emt 0:00:31]} a6 {[%emt 0:00:04]} 14. a4 {[%emt 0:00:05]} Qf5 {[%emt 0:00:39]} 15. Qxf5 {[%emt 0:01:04]} gxf5 {[%emt 0:00:03]} 16. Ra3 {[%emt 0:00:02]} Ne4 {[%emt 0:01:32]} 17. Rd1 {[%emt 0:00:14]} Nxc3 {[%emt 0:01:03]} 18. Nxc3 {[%emt 0:00:43]} Rfd8 {[%emt 0:00:07]} 19. Kf3 {[%emt 0:00:24]} Be5 {[%emt 0:00:05]} 20. Ke2 {[%emt 0:00:05]} Kf8 {[%emt 0:00:55]} 21. Kd3 {[%emt 0:00:07]} Ke8 {[%emt 0:00:02]} 22. Kc2 {[%emt 0:00:03]} Kd7 {[%emt 0:00:03]} 23. Ne2 {[%emt 0:02:15]} Bxb2 {[%emt 0:00:30]} 24. Kxb2 {[%emt 0:00:01]} e5 {[%emt 0:00:37]} 25. Kc2 {[%emt 0:00:30]} Ke7 {[%emt 0:00:31]} 26. Ng1 {[%emt 0:00:32]} Rg8 {[%emt 0:00:18]} 27. Raa1 {[%emt 0:00:05]} Rg4 {[%emt 0:00:08]} 28. Nf3 {[%emt 0:00:43]} Kf6 {[%emt 0:00:12]} 29. Kc3 {[%emt 0:00:15]} Rc8 {[%emt 0:00:34]} 30. Ra2 {[%emt 0:00:31]} Rgg8 {[%emt 0:00:13]} 31. Re1 {[%emt 0:00:09]} Rg4 {[%emt 0:00:08]} 32. Nh4 {[%emt 0:00:14]} Rgg8 {[%emt 0:00:45]} 33. f3 {[%emt 0:00:04]} h5 {[%emt 0:00:18]} 34. e4 {[%emt 0:00:48]} f4 {[%emt 0:00:43]} 35. Nf5 {[%emt 0:00:03]} fxg3 {[%emt 0:00:34]} 36. hxg3 {[%emt 0:00:02]} Rcd8 {[%emt 0:00:16]} 37. Rh1 {[%emt 0:00:03]} Rg5 {[%emt 0:00:40]} 38. Rah2 {[%emt 0:00:07]} Rdg8 {[%emt 0:00:46]} 39. Rxh5 {[%emt 0:00:20]} Rxg3 {[%emt 0:00:02]} 40. Rh6+ {[%emt 0:00:33]} R3g6 {[%emt 0:00:01]} 41. Nxd6 {[%emt 0:00:03]} Rd8 {[%emt 0:01:12]} 42. Nf5 {[%emt 0:00:18]} Rxh6 {[%emt 0:00:04]} 43. Rxh6+ {[%emt 0:00:05]} Kg5 {[%emt 0:00:01]} 44. b4 {[%emt 0:00:08]} 1-0

[Event "Kurnosov Memorial Rapid 2019"]
[Site "Chelyabinsk"]
[Date "2019.09.08"]
[Round "10.7"]
[White "Korneev, Oleg"]
[Black "Shaposhnikov, Evgeny"]
[Result "1-0"]
[ECO "C24"]
[WhiteElo "2508"]
[BlackElo "2572"]
[Annotator "RC"]
[PlyCount "211"]
[EventDate "2019.09.06"]
[EventType "swiss"]
[EventCountry "RUS"]
[SourceTitle "playchess.com"]
[Source "ChessBase"]
[SourceQuality "1"]
[TimeControl "900+10"]

1. e4 {[%emt 0:00:00]} e5 {[%emt 0:00:12]} 2. Bc4 {[%emt 0:00:00]} Nf6 {[%emt 0:00:04]} 3. d3 {[%emt 0:00:00]} c6 {[%emt 0:00:02]} 4. Nf3 {[%emt 0:00:00]} d5 {[%emt 0:00:03]} 5. Bb3 {[%emt 0:00:00]} Bb4+ {[%emt 0:00:08]} 6. Bd2 {[%emt 0:00:03]} Bxd2+ {[%emt 0:00:13]} 7. Qxd2 {[%emt 0:00:02]} a5 {[%emt 0:00:12]} 8. a3 {[%emt 0:00:15]} Nbd7 {[%emt 0:01:01]} 9. Nc3 {[%emt 0:00:18]} d4 {[%emt 0:00:23]} 10. Ne2 {[%emt 0:00:04]} O-O {[%emt 0:00:03]} 11. O-O {[%emt 0:00:13]} Nh5 {[%emt 0:00:17]} 12. Ng3 {[%emt 0:02:57]} Nxg3 {[%emt 0:00:34]} 13. fxg3 {[%emt 0:03:19]} Qe7 {[%emt 0:00:15]} 14. Ng5 {[%emt 0:00:38]} Nf6 {[%emt 0:00:20]} 15. h3 {[%emt 0:00:26]} h6 {[%emt 0:00:54]} 16. Nf3 {[%emt 0:00:10]} Be6 {[%emt 0:00:02]} 17. Bxe6 {[%emt 0:01:43]} Qxe6 {[%emt 0:00:01]} 18. g4 {[%emt 0:00:43]} Ne8 {[%emt 0:00:25]} 19. Nh4 {[%emt 0:01:23]} Nd6 {[%emt 0:00:08]} 20. g5 {[%emt 0:00:33]} Qe7 {[%emt 0:00:32]} 21. Nf5 {[%emt 0:01:14]} Nxf5 {[%emt 0:00:05]} 22. Rxf5 {[%emt 0:00:02]} hxg5 {[%emt 0:00:07]} 23. Rxg5 {[%emt 0:00:02]} f6 {[%emt 0:00:11]} 24. Rg3 {[%emt 0:00:07]} Kf7 {[%emt 0:00:31]} 25. Qe2 {[%emt 0:00:12]} Ke8 {[%emt 0:00:07]} 26. Qh5+ {[%emt 0:00:17]} Qf7 {[%emt 0:00:23]} 27. Qh7 {[%emt 0:00:21]} g5 {[%emt 0:01:04]} 28. Qf5 {[%emt 0:00:15]} Ke7 {[%emt 0:00:01]} 29. a4 {[%emt 0:00:28]} Qe6 {[%emt 0:00:20]} 30. Qf2 {[%emt 0:00:09]} Rh8 {[%emt 0:00:19]} 31. Rg4 {[%emt 0:00:53]} Rh6 {[%emt 0:00:12]} 32. Rf1 {[%emt 0:00:31]} Rah8 {[%emt 0:00:01]} 33. Qd2 {[%emt 0:00:10]} Ra8 {[%emt 0:00:48]} 34. b3 {[%emt 0:01:01]} Kd7 {[%emt 0:00:10]} 35. Rf5 {[%emt 0:00:16]} Qe7 {[%emt 0:00:47]} 36. Qf2 {[%emt 0:00:22]} Rg8 {[%emt 0:00:39]} 37. Qe1 {[%emt 0:01:05]} Qb4 {[%emt 0:00:09]} 38. Qf2 {[%emt 0:00:33]} Rgg6 {[%emt 0:00:01]} 39. Rg3 {[%emt 0:00:09]} Qc3 {[%emt 0:00:24]} 40. Rg4 {[%emt 0:00:26]} Qa1+ {[%emt 0:00:57]} 41. Kh2 {[%emt 0:00:12]} Qc1 {[%emt 0:00:07]} 42. Qe2 {[%emt 0:00:12]} Kc7 {[%emt 0:00:10]} 43. Rf1 {[%emt 0:00:04]} Qb2 {[%emt 0:00:03]} 44. Qd2 {[%emt 0:00:08]} Kb6 {[%emt 0:00:04]} 45. Kg1 {[%emt 0:00:10]} Qc3 {[%emt 0:00:20]} 46. Qf2 {[%emt 0:00:15]} Ka7 {[%emt 0:00:17]} 47. Kh2 {[%emt 0:00:03]} Rh5 {[%emt 0:00:55]} 48. Qe2 {[%emt 0:00:06]} Rgh6 {[%emt 0:00:04]} 49. Rf3 {[%emt 0:00:06]} Kb6 {[%emt 0:00:08]} 50. Qf2 {[%emt 0:00:06]} Ka7 {[%emt 0:00:11]} 51. Rxf6 {[%emt 0:00:07]} Rxf6 {[%emt 0:00:04]} 52. Qxf6 {[%emt 0:00:01]} Qxc2 {[%emt 0:00:02]} 53. Qxe5 {[%emt 0:00:10]} Qxd3 {[%emt 0:04:36]} 54. Qxa5+ {[%emt 0:00:21]} Qa6 {[%emt 0:00:02]} 55. Qd2 {[%emt 0:00:36]} c5 {[%emt 0:00:22]} 56. e5 {[%emt 0:00:01]} Qe6 {[%emt 0:00:08]} 57. Rxg5 {[%emt 0:00:13]} Rxg5 {[%emt 0:00:08]} 58. Qxg5 {[%emt 0:00:01]} d3 {[%emt 0:00:06]} 59. Qe3 {[%emt 0:00:17]} Qd5 {[%emt 0:00:09]} 60. e6 {[%emt 0:00:11]} d2 {[%emt 0:00:07]} 61. e7 {[%emt 0:00:05]} Qd6+ {[%emt 0:00:14]} 62. g3 {[%emt 0:00:05]} d1=Q {[%emt 0:00:09]} 63. e8=Q {[%emt 0:00:02]} Qc2+ {[%emt 0:00:44]} 64. Qe2 {[%emt 0:00:01]} Qxb3 {[%emt 0:00:03]} 65. Q8e5 {[%emt 0:00:18]} Qxe5 {[%emt 0:00:15]} 66. Qxe5 {[%emt 0:00:02]} b6 {[%emt 0:01:20]} 67. h4 {[%emt 0:00:05]} c4 {[%emt 0:00:15]} 68. h5 {[%emt 0:00:15]} c3 {[%emt 0:00:01]} 69. h6 {[%emt 0:00:07]} c2 {[%emt 0:00:05]} 70. Qc7+ {[%emt 0:00:09]} Ka6 {[%emt 0:00:02]} 71. h7 {[%emt 0:00:08]} Qb2 {[%emt 0:00:04]} 72. Qc8+ {[%emt 0:00:43]} Ka5 {[%emt 0:00:09]} 73. h8=Q {[%emt 0:00:07]} c1=Q+ {[%emt 0:00:12]} 74. Qxb2 {[%emt 0:00:03]} Qxb2+ {[%emt 0:00:02]} 75. Kh3 {[%emt 0:00:01]} Qb1 {[%emt 0:01:40]} 76. g4 {[%emt 0:00:16]} Qh1+ {[%emt 0:00:02]} 77. Kg3 {[%emt 0:00:01]} Qg1+ {[%emt 0:00:01]} 78. Kh4 {[%emt 0:00:14]} Kxa4 {[%emt 0:00:04]} 79. g5 {[%emt 0:00:22]} b5 {[%emt 0:00:18]} 80. Qa6+ {[%emt 0:00:21]} Kb4 {[%emt 0:00:03]} 81. Qd6+ {[%emt 0:00:11]} Kc4 {[%emt 0:00:37]} 82. g6 {[%emt 0:00:10]} b4 {[%emt 0:00:08]} 83. Qf4+ {[%emt 0:00:05]} Kc3 {[%emt 0:00:18]} 84. Qe5+ {[%emt 0:00:03]} Kc2 {[%emt 0:00:12]} 85. g7 {[%emt 0:00:12]} b3 {[%emt 0:00:17]} 86. Qe4+ {[%emt 0:00:21]} Kc3 {[%emt 0:00:19]} 87. Qf3+ {[%emt 0:00:11]} Kc2 {[%emt 0:00:16]} 88. Qf5+ {[%emt 0:00:02]} Kd2 {[%emt 0:00:13]} 89. Qd5+ {[%emt 0:00:07]} Kc2 {[%emt 0:00:16]} 90. Qc4+ {[%emt 0:00:17]} Kd2 {[%emt 0:00:20]} 91. g8=Q {[%emt 0:00:05]} Qh2+ {[%emt 0:00:02]} 92. Kg4 {[%emt 0:00:05]} Qg2+ {[%emt 0:00:11]} 93. Kf4 {[%emt 0:00:06]} Qf2+ {[%emt 0:00:05]} 94. Ke4 {[%emt 0:00:08]} Qe3+ {[%emt 0:00:07]} 95. Kf5 {[%emt 0:00:10]} Qh3+ {[%emt 0:00:10]} 96. Qgg4 {[%emt 0:00:09]} Qh7+ {[%emt 0:00:01]} 97. Kf4 {[%emt 0:00:14]} Qh2+ {[%emt 0:00:05]} 98. Ke4 {[%emt 0:00:13]} Qh7+ {[%emt 0:00:13]} 99. Qf5 {[%emt 0:00:08]} Qh1+ {[%emt 0:00:18]} 100. Kd4 {[%emt 0:00:13]} Qa1+ {[%emt 0:00:02]} 101. Kd5 {[%emt 0:00:11]} Qa8+ {[%emt 0:00:07]} 102. Qc6 {[%emt 0:00:11]} Qg8+ {[%emt 0:00:25]} 103. Kd4 {[%emt 0:00:15]} Qg7+ {[%emt 0:00:10]} 104. Qe5 {[%emt 0:00:11]} Qg1+ {[%emt 0:00:05]} 105. Kd5 {[%emt 0:00:08]} Qg8+ {[%emt 0:00:21]} 106. Kc5 {[%emt 0:00:12]} 1-0

[Event "Kurnosov Memorial Rapid 2019"]
[Site "Chelyabinsk"]
[Date "2019.09.08"]
[Round "10.8"]
[White "Mirzoev, Azer"]
[Black "Yudin, Sergei"]
[Result "1/2-1/2"]
[ECO "D02"]
[WhiteElo "2502"]
[BlackElo "2494"]
[Annotator "ChessBase"]
[PlyCount "95"]
[EventDate "2019.09.06"]
[EventType "swiss"]
[EventCountry "RUS"]
[SourceTitle "playchess.com"]
[Source "ChessBase"]
[SourceQuality "1"]
[TimeControl "900+10"]

1. d4 {[%emt 0:00:00]} d5 {[%emt 0:00:59]} 2. Nf3 {[%emt 0:00:02]} c6 {[%emt 0:00:02]} 3. e3 {[%emt 0:00:04]} Bf5 {[%emt 0:00:04]} 4. c4 {[%emt 0:00:35]} e6 {[%emt 0:00:07]} 5. Nc3 {[%emt 0:00:07]} Nd7 {[%emt 0:00:05]} 6. Bd3 {[%emt 0:00:01]} Bg6 {[%emt 0:00:14]} 7. O-O {[%emt 0:00:05]} Ngf6 {[%emt 0:00:06]} 8. b3 {[%emt 0:00:03]} Bd6 {[%emt 0:00:10]} 9. Bb2 {[%emt 0:00:43]} O-O {[%emt 0:00:47]} 10. h3 {[%emt 0:00:04]} Ne4 {[%emt 0:00:12]} 11. Qc2 {[%emt 0:00:55]} f5 {[%emt 0:00:29]} 12. Ne2 {[%emt 0:01:21]} Qf6 {[%emt 0:01:46]} 13. Nd2 {[%emt 0:00:46]} Bf7 {[%emt 0:03:00]} 14. f3 {[%emt 0:00:29]} Nxd2 {[%emt 0:00:13]} 15. Qxd2 {[%emt 0:00:06]} Qh6 {[%emt 0:01:32]} 16. Rad1 {[%emt 0:00:21]} Nf6 {[%emt 0:00:57]} 17. Bc1 {[%emt 0:03:20]} g5 {[%emt 0:01:28]} 18. e4 {[%emt 0:03:01]} fxe4 {[%emt 0:00:54]} 19. fxe4 {[%emt 0:00:02]} Nxe4 {[%emt 0:00:52]} 20. Bxe4 {[%emt 0:00:03]} dxe4 {[%emt 0:00:02]} 21. Qxg5+ {[%emt 0:00:57]} Qxg5 {[%emt 0:00:02]} 22. Bxg5 {[%emt 0:00:01]} Bh5 {[%emt 0:00:36]} 23. g4 {[%emt 0:00:51]} Bg6 {[%emt 0:00:08]} 24. Nf4 {[%emt 0:00:53]} Bxf4 {[%emt 0:02:56]} 25. Bxf4 {[%emt 0:00:01]} Rf7 {[%emt 0:00:13]} 26. Bh6 {[%emt 0:00:15]} a5 {[%emt 0:00:03]} 27. h4 {[%emt 0:01:31]} a4 {[%emt 0:00:16]} 28. h5 {[%emt 0:00:09]} Rxf1+ {[%emt 0:00:05]} 29. Rxf1 {[%emt 0:00:02]} Bf7 {[%emt 0:00:14]} 30. Re1 {[%emt 0:00:31]} axb3 {[%emt 0:00:02]} 31. axb3 {[%emt 0:00:01]} Ra3 {[%emt 0:00:08]} 32. Rxe4 {[%emt 0:00:09]} Rxb3 {[%emt 0:00:02]} 33. c5 {[%emt 0:00:04]} b5 {[%emt 0:00:16]} 34. cxb6 {[%emt 0:00:01]} Rxb6 {[%emt 0:00:01]} 35. Kf2 {[%emt 0:00:13]} Rb3 {[%emt 0:00:47]} 36. Re5 {[%emt 0:00:20]} Rb5 {[%emt 0:00:19]} 37. Re1 {[%emt 0:00:02]} e5 {[%emt 0:00:19]} 38. dxe5 {[%emt 0:00:17]} Be6 {[%emt 0:00:01]} 39. Re4 {[%emt 0:00:31]} Kf7 {[%emt 0:00:04]} 40. Rf4+ {[%emt 0:00:04]} Ke7 {[%emt 0:00:34]} 41. Bf8+ {[%emt 0:01:42]} Kd7 {[%emt 0:00:07]} 42. Bd6 {[%emt 0:00:22]} c5 {[%emt 0:00:25]} 43. g5 {[%emt 0:00:08]} c4 {[%emt 0:00:09]} 44. Ke3 {[%emt 0:00:32]} Rb3+ {[%emt 0:00:05]} 45. Kd2 {[%emt 0:00:11]} Rh3 {[%emt 0:00:06]} 46. g6 {[%emt 0:00:16]} hxg6 {[%emt 0:00:14]} 47. hxg6 {[%emt 0:00:01]} Rg3 {[%emt 0:00:07]} 48. Bb4 {[%emt 0:00:18]} 1/2-1/2

[Event "Kurnosov Memorial Rapid 2019"]
[Site "Chelyabinsk"]
[Date "2019.09.08"]
[Round "10.9"]
[White "Zhigalko, Andrey"]
[Black "Romanov, Evgeny"]
[Result "1/2-1/2"]
[ECO "A25"]
[WhiteElo "2478"]
[BlackElo "2579"]
[Annotator "ChessBase"]
[PlyCount "52"]
[EventDate "2019.09.06"]
[EventType "swiss"]
[EventCountry "RUS"]
[SourceTitle "playchess.com"]
[Source "ChessBase"]
[SourceQuality "1"]
[TimeControl "900+10"]

1. c4 {[%emt 0:00:00]} e5 {[%emt 0:00:24]} 2. Nc3 {[%emt 0:00:00]} Nc6 {[%emt 0:00:18]} 3. g3 {[%emt 0:00:09]} f5 {[%emt 0:00:29]} 4. Bg2 {[%emt 0:00:06]} Nf6 {[%emt 0:00:01]} 5. e3 {[%emt 0:00:26]} g6 {[%emt 0:00:38]} 6. d3 {[%emt 0:00:46]} Bg7 {[%emt 0:00:02]} 7. Nge2 {[%emt 0:00:01]} O-O {[%emt 0:00:04]} 8. O-O {[%emt 0:00:03]} d6 {[%emt 0:00:05]} 9. Rb1 {[%emt 0:00:04]} a5 {[%emt 0:00:40]} 10. b3 {[%emt 0:01:15]} Ne7 {[%emt 0:00:26]} 11. e4 {[%emt 0:01:17]} c6 {[%emt 0:00:23]} 12. d4 {[%emt 0:03:06]} Nxe4 {[%emt 0:02:51]} 13. Nxe4 {[%emt 0:00:04]} fxe4 {[%emt 0:00:01]} 14. dxe5 {[%emt 0:01:49]} Bxe5 {[%emt 0:00:57]} 15. Bxe4 {[%emt 0:00:23]} Bh3 {[%emt 0:01:00]} 16. Re1 {[%emt 0:01:37]} d5 {[%emt 0:00:45]} 17. cxd5 {[%emt 0:02:08]} Nxd5 {[%emt 0:00:02]} 18. Bxd5+ {[%emt 0:00:53]} Qxd5 {[%emt 0:01:36]} 19. Qxd5+ {[%emt 0:00:04]} cxd5 {[%emt 0:00:02]} 20. Bb2 {[%emt 0:01:04]} Bd6 {[%emt 0:01:45]} 21. Rbd1 {[%emt 0:00:14]} Rae8 {[%emt 0:00:48]} 22. Nd4 {[%emt 0:01:18]} Bb4 {[%emt 0:00:44]} 23. Rxe8 {[%emt 0:00:12]} Rxe8 {[%emt 0:00:01]} 24. f3 {[%emt 0:00:07]} h5 {[%emt 0:01:32]} 25. Kf2 {[%emt 0:00:03]} Bc5 {[%emt 0:00:05]} 26. Bc1 {[%emt 0:00:31]} Rc8 {[%emt 0:02:19]} 1/2-1/2